Cogmind - Beta 14 @@@ ROGUE MODE // 2024.10.27 @ 08:14:40 Player: Hilbert Result: Destroyed by G-34 Mercenary with Small Laser Performance ------------- Evolutions (0) 0 Regions Visited (2) 400 Robots Destroyed (13) 65 Value Destroyed (350) 350 Prototype IDs (0) 0 Alien Tech Used (0) 0 Bonus (174) 174 TOTAL SCORE: 989 Bonus ------- Follower Combat Kills 174 Cogmind --------- Core Integrity 0/250 Matter 300/300 Energy 100/100 System Corruption 5% Temperature Cool (6) Movement Core (200) Ox3 Location -10/Mines Parts ------- > --- POWER (1) -------- (None) > --- PROPULSION (2) --- Compact Wheel > --- UTILITY (2) ------ Medium Storage Unit > --- WEAPON (2) ------- (None) > --- INVENTORY (10) --- Light Ion Engine Light Nuclear Core Aluminum Leg Aluminum Leg Wheel Heat Sink Small Storage Unit Seismic Detector Peak State ------------ > --- POWER ------------ Light Ion Engine > --- PROPULSION ------- Light Treads Compact Wheel > --- UTILITY ---------- Improved Heat Sink Medium Storage Unit > --- WEAPON ----------- Medium Laser Light Assault Rifle > --- INVENTORY -------- Light Ion Engine Light Nuclear Core Light Treads Aluminum Leg Aluminum Leg Wheel Heat Sink Small Storage Unit Seismic Detector Light Assault Rifle [Rating: 10] Favorites ----------- Power Light Ion Engine Engine Light Ion Engine Propulsion Light Treads Treads Light Treads Leg Aluminum Leg Wheel Compact Wheel Utility Medium Storage Unit Device Improved Heat Sink Storage Medium Storage Unit Weapon Light Assault Rifle Energy Gun Medium Laser Ballistic Gun Light Assault Rifle Build | -11 -10 -10 ------- Run | Yrd Mat Min Slots Evolved . | . . . Power . | . . . Propulsion . | . . . Utility . | . . . Weapon . | . . . Parts Attached 13 | 2 6 5 Power 1 | . 1 . Engine 1 | . 1 . Core . | . . . Reactor . | . . . Propulsion 5 | 2 1 2 Treads 3 | 1 1 1 Leg . | . . . Wheel 2 | 1 . 1 Hover . | . . . Flight . | . . . Utility 5 | . 3 2 Device 4 | . 2 2 Storage 1 | . 1 . Processor . | . . . Hackware . | . . . Protection . | . . . Artifact . | . . . Weapon 2 | . 1 1 Energy Gun 1 | . 1 . Energy Cannon . | . . . Ballistic Gun 1 | . . 1 Ballistic Cannon . | . . . Launcher . | . . . Special Weapon . | . . . Impact Weapon . | . . . Slashing Weapon . | . . . Piercing Weapon . | . . . Special Melee Weapon . | . . . Unidentified Prototypes . | . . . Parts Lost 10 | . 4 6 Power 2 | . 1 1 Propulsion 3 | . 1 2 Utility 2 | . 1 1 Weapon 3 | . 1 2 Highest Loss Streak 6 | . 4 6 To Critical Strikes . | . . . Average Slot Usage (%) 93 | . 95 92 Engine 13 | . 12 13 Treads 15 | . 19 14 Wheel 11 | . 8 13 Device 9 | . 10 9 Storage 17 | . 15 18 Energy Gun 9 | . 14 8 Ballistic Gun 14 | . 14 14 Peak Build Rating 10 | 6 7 10 Average Rating 7 | 6 6 7 On Entrance 6 | 6 6 7 Naked Turns . | . . . Heaviest Build 21 | 13 21 21 Greatest Support 40 | 16 40 40 Greatest Overweight (x) 1 | . . 1 Average Overweight (x) . | . . . Largest Inventory Capacity 10 | 8 10 10 Average Capacity 9 | 8 8 10 Most Carried 10 | 6 6 10 Average Carried 7 | 6 5 8 Final Capacity 10 | 8 10 10 Final Carried 8 | 6 4 8 Class Distribution -------------------- 100% | Mutant Dominant Class ---------------- Mutant | -10/Materials Mutant | -10/Mines Resources | -11 -10 -10 ----------- Run | Yrd Mat Min Matter Collected 469 | 173 122 174 Remotely . | . . . Salvage Created 435 | . 196 239 Parts 23 | . 7 16 Haulers Intercepted . | . . . Recyclers Shooed . | . . . Parts Field Recycled . | . . . Retrieved Matter . | . . . Parts Self-Destructed . | . . . Prevented . | . . . Kills | -11 -10 -10 ------- Run | Yrd Mat Min Combat Hostiles Destroyed 13 | . 4 9 Melee 1 | . . 1 Guns 12 | . 4 8 Classes Destroyed 2 | . 1 1 Swarmer 6 | . . 6 Grunt 7 | . 4 3 Best Kill Streak 3 | . 3 3 Combat Bots Only 3 | . 3 3 Max Kills in Single Turn 1 | . 1 1 Gunslinging . | . . . Exploded . | . . . Melee 1 | . . 1 Uniques/NPCs Destroyed . | . . . Combat | -11 -10 -10 -------- Run | Yrd Mat Min Hostile Shots Fired 120 | . 51 69 Missed 30 | . 8 22 Damage Taken 1033 | . 540 493 Core 256 | . 89 167 Absorbed by Shields . | . . . Core Remaining (%) 100 | 100 . . Volleys Fired 66 | . 24 42 Largest 2 | . 2 2 Hottest 70 | . 70 70 Shots Fired 125 | . 48 77 Gun 125 | . 48 77 Cannon . | . . . Launcher . | . . . Special . | . . . Kinetic 75 | . 24 51 Thermal 32 | . 6 26 Explosive . | . . . Electromagnetic 18 | . 18 . Robot Hit Streak 10 | . 7 10 Robot Miss Streak 5 | . 4 5 Penetration Max . | . . . Secondary Targets 1 | . 1 . Max Gunslinging Chain 1 | . 1 . Shots Hit Robots 62 | . 29 33 Core Hits 31 | . 13 18 Critical Kills . | . . . Critical Parts Destroyed . | . . . Critical Strikes 1 | . . 1 Burn 1 | . . 1 Melee Attacks . | . . . Impact . | . . . Slashing . | . . . Piercing . | . . . Sneak Attacks . | . . . Combat Hostiles . | . . . Follow-up Attacks . | . . . Damage Inflicted 624 | . 310 314 Guns 602 | . 297 305 Cannons . | . . . Explosions . | . . . Melee . | . . . Ramming 22 | . 13 9 Kinetic 315 | . 125 190 Thermal 154 | . 39 115 Explosive . | . . . Electromagnetic 133 | . 133 . Impact . | . . . Slashing . | . . . Piercing . | . . . Highest Corruption 5 | . 5 5 Average Corruption 4 | . 1 5 Corruption Purged . | . . . Corruption Blocked . | . . . Effects 25 | . 3 22 Message Errors 4 | . . 4 Matter Fused 9 | . 1 8 Heat Flow Errors 5 | . 1 4 Energy Discharges 2 | . 1 1 Parts Rejected 1 | . . 1 Data Loss (minor) 1 | . . 1 Misfires 1 | . . 1 Alerts 2 | . . 2 Overload Shots . | . . . Overflow Damage . | . . . Projectiles . | . . . Explosions . | . . . Melee . | . . . Knockbacks . | . . . Impact . | . . . Kinetic . | . . . Secondary . | . . . Self-Inflicted Damage 8 | . 6 2 Shots . | . . . Rammed 9 | . 1 8 Targets Rammed 9 | . 1 8 Kicked . | . . . Crushed . | . . . Highest Temperature 387 | . 387 265 Average Temperature 160 | . 278 67 Received Heat Transfer 516 | . 333 183 Effects 1 | . 1 . Matter Decay 1 | . 1 . Siege Activations . | . . . Robots Corrupted . | . . . Combat Hostiles . | . . . Parts Fried 1 | . 1 . Impact Corruptions . | . . . Robots Melted . | . . . Combat Hostiles . | . . . Parts Melted 2 | . 1 1 Heat Transferred 518 | . 111 407 Parts Sabotaged . | . . . Parts Stolen . | . . . Parts Stripped . | . . . Power Chain Reactions . | . . . Alert | -11 -10 -10 ------- Run | Yrd Mat Min Peak Influence 245 | . 110 245 Initial 42 | . . 42 Average 105 | . 46 126 Maximum Alert Level 1 | . . 1 Low Security (%) 93 | 100 100 90 Level 1 6 | . . 9 Level 2 . | . . . Level 3 . | . . . Level 4 . | . . . Level 5 . | . . . High Security . | . . . Max Security . | . . . Squads Dispatched . | . . . Investigation . | . . . Extermination . | . . . Reinforcement . | . . . Assault . | . . . Garrison . | . . . Intercept . | . . . Searches Triggered . | . . . Construction Impeded . | . . . Haulers Reinforced . | . . . Active Scanning Responses . | . . . Cargo Convoy Interrupts . | . . . Stealth | -11 -10 -10 --------- Run | Yrd Mat Min Distress Signals . | . . . Communications Jammed . | . . . Distress Signals . | . . . Times Spotted 24 | . 6 18 Peak Tracking Total 4 | . 4 4 Tactical Retreats 1 | . 1 . Traps | -11 -10 -10 ------- Run | Yrd Mat Min Traps Triggered 2 | . 2 . Indirectly . | . . . Trap Hack Attempts . | . . . Triggered . | . . . Disarmed . | . . . Reprogrammed . | . . . Reused . | . . . Traps Extracted . | . . . Installed . | . . . Triggered . | . . . Machines | -11 -10 -10 ---------- Run | Yrd Mat Min Machines Disabled . | . . . Max in Single Turn . | . . . Machines Repaired . | . . . Machines Dismantled . | . . . Machines Sabotaged . | . . . Overloaded Fab Kills . | . . . Hacking | -11 -10 -10 --------- Run | Yrd Mat Min Machines Accessed 1 | . 1 . Terminals 1 | . 1 . Fabricators . | . . . Repair Stations . | . . . Recycling Units . | . . . Scanalyzers . | . . . Garrison Access . | . . . Total Hacks 2 | . 2 . Successful 1 | . 1 . Failed 1 | . 1 . Catastrophic . | . . . Database Lockouts . | . . . Manual 2 | . 2 . Terminals 2 | . 2 . Fabricators . | . . . Repair Stations . | . . . Recycling Units . | . . . Scanalyzers . | . . . Garrison Access . | . . . Terminal Hacks . | . . . Fabricator Hacks . | . . . Repair Station Hacks . | . . . Recycling Unit Hacks . | . . . Scanalyzer . | . . . Garrison Access Hacks . | . . . Unauthorized Hacks 1 | . 1 . Terminals 1 | . 1 . Botnet 1 | . 1 . Fabricators . | . . . Repair Stations . | . . . Recycling Units . | . . . Scanalyzers . | . . . Garrison Access . | . . . Data Cores Recovered . | . . . Used . | . . . Hacking Detections 1 | . 1 . Full Trace Events . | . . . Feedback Events . | . . . Feedback Blocked . | . . . Robot Schematics Acquired . | . . . Robots Built . | . . . Authchips . | . . . Time . | . . . Total Robot Build Rating . | . . . Part Schematics Acquired . | . . . Parts Built . | . . . Authchips . | . . . Time . | . . . Total Part Build Rating . | . . . Parts Repaired . | . . . Time . | . . . Parts Recycled . | . . . Recycled Matter . | . . . Retrieved Matter . | . . . Retrieved Components . | . . . Parts Scanalyzed . | . . . Part Schematics Acquired . | . . . Parts Damaged . | . . . Bothacking | -11 -10 -10 ------------ Run | Yrd Mat Min Used RIF Installer . | . . . Robots Hacked . | . . . Non-combat . | . . . Combat . | . . . Robot Hacks Applied . | . . . Relay Couplers Released . | . . . Fabnet Peak Effective % . | . . . Robots Rewired . | . . . Allies Hacked . | . . . Hacks Repelled . | . . . Allies | -11 -10 -10 -------- Run | Yrd Mat Min Total Allies 3 | . . 3 Largest Group 3 | . . 3 Highest-Rated Group 40 | . . 40 Highest-Rated Ally 16 | . . 16 Total Orders . | . . . Ally Attacks 48 | . . 48 Total Damage 533 | . . 533 Kills 10 | . . 10 Allies Corrupted . | . . . Allies Melted . | . . . Intel | -11 -10 -10 ------- Run | Yrd Mat Min Robot Analysis Total . | . . . Derelict Logs Recovered 2 | . . 2 Drone Launches . | . . . Drone Recoveries . | . . . Exploration | -11 -10 -10 ------------- Run | Yrd Mat Min Turns Passed 1235 | 3 316 916 Spaces Moved 846 | 1 210 635 Core . | . . . Treads 53 | . 38 15 Legs . | . . . Wheels 793 | 1 172 620 Hover . | . . . Flight . | . . . Fastest Speed 100 | 100 100 100 Average Speed 109 | 100 110 109 Slowest Speed 160 | 100 160 160 Overloaded Moves . | . . . Propulsion Burnouts . | . . . Robots Hopped . | . . . Cave-ins Triggered . | . . . Exploration Rate (%) 44 | 2 37 95 Regions Visited 2 Branch Regions 1 Pre-discovered Areas 1 | . . 1 Known Exits Taken . | . . . Unknown Exits Taken 2 | 1 1 . Scrap Searched 1 | . . 1 Spaces Dug . | . . . Terrain Destroyed . | . . . Melee . | . . . Projectile . | . . . AOE . | . . . Terrain Rammed . | . . . Walls Destroyed . | . . . Machines Disabled . | . . . Actions | -11 -10 -10 --------- Run | Yrd Mat Min Total 1031 | 2 249 780 Wait 93 | . 8 85 Move 844 | . 209 635 Hop . | . . . Pick Up 6 | . 1 5 Fast Attach 2 | . 2 . Attach 5 | . 3 2 Detach . | . . . Swap 6 | 2 1 3 Drop . | . . . Fire 66 | . 24 42 Melee . | . . . Ram 8 | . 1 7 Kick . | . . . Crush 1 | . . 1 Escape Stasis . | . . . Rewire . | . . . Trap . | . . . Miscellaneous . | . . . Route ------- -11/Scrapyard -10/Materials (discovered 2 exits: [*Mat] / [*Min]) -10/Mines (discovered 1 exit: [*Mat]) History --------- Turn | Location | Event 4 | -11/Scrapyard | Discovered new exit (range 0) 4 | -11/Scrapyard | Entered Materials 152 | -10/Materials | Discovered new exit (range 5) 271 | -10/Materials | Lost 4 parts (1p1n1u1w) 283 | -10/Materials | Discovered new exit (range 14) 313 | -10/Materials | Build established: Mutant 320 | -10/Materials | Entered Mines 357 | -10/Mines | Core integrity fell below 50% 499 | -10/Mines | Learned Materials emergency access door positions 514 | -10/Mines | Assisted by bots powering up and referring to "LRC-V3" 601 | -10/Mines | Learned location of Mines (-8) 688 | -10/Mines | Excavation squad dispatched 688 | -10/Mines | A large section of the Mines collapsed 848 | -10/Mines | Discovered new exit (range 8) 1177 | -10/Mines | Core integrity fell below 20% 1236 | -10/Mines | Destroyed by G-34 Mercenary with Small Laser Last Messages --------------- 01164_ System corrupted: Heat flow error (+299). 01186_ System corrupted: Component data lost. 01192_ Lgt. Treads destroyed. 01196_ G-47 Trooper destroyed. 01203_ Lgt. Ion Engine destroyed. 01204_ G-47 Trooper destroyed. 01205_ Acquired 29 matter. 01207_ Acquired 2 matter. 01211_ Lgt. Assault Rifle destroyed. 01212_ Acquired 1 matter. 01213_ Imp. Heat Sink destroyed. 01214_ Acquired 1 matter. 01221_ Acquired 10 matter. 01221_ Lgt. Assault Rifle destroyed. 01221_ Slammed into G-34 Mercenary. 01221_ G-34 Mercenary destroyed. 01222_ Lgt. Treads destroyed. 01223_ Slammed into G-34 Mercenary. 01227_ Destabilizing: Core damaged (-10). 01229_ Slammed into G-34 Mercenary. Map ----- +----------------------------------------------------+ | ?????????????????## #????######?? | | ??????????????????# ### ###### ##? | | ??????????????##### #### ## ## | | ?????????????## ######## ####### | | ?????????????# #?????#####?????##### | | ?????????????# #???????????????????## | | ?????????????# ## ##???????????????????## | | ?????????????## ######???????????????????## | | ?????????????## ##??????????????????????## # | | ????????????## #?????????????????????## ## | | ????????????# #?????????????????????# ##? | | ???????????## #?????????????????????# ##? | | ???????? ## ##?????????????????????## ## | | ???????# #???????????????????????## # | | ???????# """ ##???????????????????????## # | | ???????# """ ##???????????????????????## # | | ???????## """ #????????????????????????### | | ????????## """ #####??????????????????????? | | ?????????# =*#????????????????####### | | ?????????# !%[#????????????????# | | ?????????# ########%#????????????????# | | ?????????## #???????#=#?????????????????# """ | | ??????????## #????????#!#?????????????????# """ | | ???????????####?????????#%#??????####???????# """ | | ???????????????????####?#%#?????## ##??????# | | ??????????????????## ###@#?????# ######## | | ??????????????????# g#?????# = = | | ???????????????#### ; #????## %% % | | ???????????????# ## #?### ######### | | ???????????????# ###### ## % ##???????#### | | ???????????????# #####???# # # ##???????????? | | ???????????????# #???????## #########??????######? | | ???????????????# #????????## #??????#### ## | | ??????????###### #####?????######??????## [ | | ??????????# #????????????????## *%# | | ??????????# """%""" #???????????????## ## | | ??????????# """=""" #???????????????# #? | | ??????????# """ """ #???????????????# ## | | ??????????# #???????????????# # | | ??????????# """ """ #???????????????## | | ??????????# """ """ #????????????????#### | | ??????????# """ ?"" #???????????????????## < | | ????????????? ?? #????????????????????## | | ??????????????" ?? #?????????????????????####### | | ??????????????" ?? #???????????????????????????? | | ?????????????????? #???????????????????????????? | | ?????????????????? #???????????????????????????? | | ?????????????????? ????????????????????????????? | | ??????????????????###????????????????????????????? | | ?????????????????????????????????????????????????? | +----------------------------------------------------+ Best States ------------- Heat Dissipation 39 Energy Generation 10 Energy Capacity 250 Matter Stores 300 Matter Capacity 300 Sight Range 16 Terrain Scan Density 10 Evasion (%) 40 Recoil Reduction 2 Item Schematics ----------------- None Robot Schematics ------------------ None Fabricated ------------ Nothing Alien Tech Used ----------------- None Achievements -------------- None Challenges ------------ None Game ------ Seed DynamicProjectionBeacon Manual? 0 Play Time 00:13:42 Cumulative 50.8 hours Start 2024.10.27 @ 05:07:46 End 2024.10.27 @ 08:14:40 Sessions 2 Manual Loads 0 Difficulty Rogue Special Mode None Game No. 103 Rogue 103 Adventurer 0 Explorer 0 Win Type - Total 2 Types 2/0/0/0/0/0/0/0/0 Lore% 25 Gallery% 37 Achievement% 33 Wizard Run 0 Options --------- Layout 1 ASCII 1 Keyboard 1 Movement Vi Keybinds 1 Fullscreen 1 Font 24/Smallcaps Map View 50x35 Zoom Use 0% Tactical HUD 1 Map Filters NONE Filters NONE Steam 1 RUN: 3d193211-2d54-416c-bb5b-4bf5081e2d7a